bitfinex/quotes_ETHUSD_20220202
["timestamp","ask_amount","ask_price","bid_price","bid_amount"]
[1643823764008,5.51785882,2672.3,2671.9,1.83258932]
[1643823764009,5.837,2672.2,2671.9,1.83258932]
[1643823764209,5.837,2672.2,2671.2,3.24149108]
[1643823764210,0.93635,2671.8,2671.2,3.24149108]
[1643823764411,6.09999999,2671.5,2671.2,3.24149108]
[1643823764609,13.34499999,2671.5,2671.2,3.24149108]
[1643823764808,13.34499999,2671.5,2671.3,1.62253825]
[1643823764809,15.93230159,2671.5,2671.3,1.62253825]
[1643823765010,14.93230159,2671.5,2671.3,1.62253825]
[1643823765413,15.11913159,2671.5,2671.4,2.19539108]
[1643823765611,15.13150068,2671.5,2671.4,2.19539108]
[1643823766212,13.54419908,2671.5,2671.4,2.13879108]
[1643823767214,13.54419908,2671.5,2671.4,2.10769108]
[1643823767435,13.54419908,2671.5,2671.4,1.73289108]
[1643823768038,1.19919908,2671.5,2671.4,1.73289108]
[1643823768235,1.01236908,2671.5,2671.4,1.73289108]
[1643823768436,3.84999999,2671.5,2671.4,1.73289108]
[1643823768837,0.99999999,2671.5,2671.4,1.73289108]
[1643823769237,1.53699999,2671.5,2671.4,1.73289108]
[1643823769537,3.68699999,2671.5,2671.4,0.03983584]
[1643823769737,3.87382999,2671.5,2671.4,0.03983584]
[1643823769936,3.87382999,2671.5,2671.4,0.12703584]
[1643823769937,4.87382999,2671.5,2671.4,0.12703584]
[1643823770139,6.1865288,2671.4,2671.2,3.24149108]
[1643823770339,6.3735288,2671.4,2671.3,0.00502009]
[1643823770539,7.91052879,2671.4,2671.3,0.00502009]
[1643823770740,3.95,2671.3,2671.2,3.24149108]
[1643823771044,4.487,2671.3,2671.2,3.24149108]
[1643823771285,0.537,2671.3,2671.2,3.24149108]
[1643823771481,2.787,2671.3,2671.2,3.24149108]
[1643823772780,2.97383,2671.3,2671.2,3.24149108]
[1643823772980,2.787,2671.3,2671.2,3.24149108]
[1643823773382,0.537,2671.3,2671.2,3.24149108]
[1643823775531,1.20868269,2671.5,2671.2,3.24149108]
[1643823775735,0.00545242,2671.6,2671.2,3.24149108]
[1643823775934,0.00545242,2671.6,2671.4,0.01250135]
[1643823776131,0.00545242,2671.6,2671.5,5.66260861]
[1643823776337,0.00545242,2671.6,2671.5,0.01260861]
[1643823776637,0.00545254,2671.6,2671.2,3.2469446]
[1643823777230,0.537,2672.2,2671.2,3.24149108]
[1643823777432,2.58715926,2672.1,2671.2,3.24149108]
[1643823777634,0.14656329,2671.3,2671.2,3.24694467]
[1643823777836,1.0054526,2671.6,2671.2,3.24694467]
[1643823777837,0.0054526,2671.6,2671.2,3.24694467]
[1643823778683,0.0109052,2671.6,2671.2,3.25239826]
[1643823778882,0.0054526,2671.6,2671.2,3.24694467]
[1643823779287,0.00047014,2671.6,2671.2,3.24694467]
[1643823779683,2.8092983,2672.1,2671.2,3.24694467]
[1643823779684,1.58712255,2672.0,2671.2,3.24149108]
[1643823779983,0.93619,2672.0,2671.2,3.24149108]
[1643823780185,0.9361893,2671.9,2671.2,3.24149108]
[1643823780383,0.9361893,2671.9,2671.6,0.75959423]
[1643823780784,0.93618,2671.8,2671.6,0.75959423]
[1643823781085,0.93618,2671.8,2671.2,6.45119108]
[1643823781285,1.87238,2671.8,2671.2,3.24149108]
[1643823781486,2.05903,2672.5,2671.4,0.1562296]
[1643823781684,2.05903,2672.5,2671.4,0.537]
[1643823781685,3.9310137,2672.5,2671.4,0.537]
[1643823781889,1.58694411,2672.4,2671.4,0.537]
[1643823782285,0.00324166,2672.0,2671.4,0.537]
[1643823782741,0.00324166,2672.0,2671.2,7.69489108]
[1643823783136,1.871965,2672.3,2671.2,7.69489108]
[1643823783539,0.00545267,2671.7,2671.3,0.00545348]
[1643823784341,0.00545267,2671.7,2671.1,1.62074554]
[1643823784342,0.01206821,2671.5,2671.1,1.62074554]
[1643823784740,0.01206821,2671.5,2671.3,0.00545336]
[1643823784938,0.187,2671.5,2671.3,0.00545336]
[1643823785340,0.724,2671.5,2671.3,0.00545336]
[1643823785540,2.59678,2671.5,2671.3,0.00545336]
[1643823785940,2.59678,2671.5,2671.2,0.00176462]
[1643823786182,2.40978,2671.5,2671.2,0.00176462]
[1643823786885,1.58744304,2671.4,2671.2,0.00176462]
[1643823787090,3.75799571,2671.4,2671.2,0.00176462]
[1643823787287,4.27969483,2671.3,2671.2,0.00176462]
[1643823787586,2.12448078,2671.3,2671.2,0.00176462]
[1643823787787,0.537,2671.3,2671.2,0.00176462]
[1643823788588,0.837,2671.3,2671.2,0.00176462]
[1643823789387,0.837,2671.3,2671.0,3.37077614]
[1643823789593,0.837,2671.3,2671.1,0.00398005]
[1643823789594,0.9365,2671.2,2671.1,0.00398005]
[1643823789790,0.9365,2671.2,2671.1,0.04433811]
[1643823790439,2.52396842,2671.2,2671.1,0.04212278]
[1643823791643,2.52391674,2671.2,2671.1,0.04212278]
[1643823791942,0.9365,2671.2,2671.1,0.04212278]
[1643823792442,2.52389487,2671.2,2671.1,0.04212278]
[1643823792846,2.82389487,2671.2,2671.1,0.04212278]
[1643823793343,2.52389487,2671.2,2671.1,0.04212278]
[1643823793782,2.82389487,2671.2,2671.1,0.04212278]
[1643823794185,2.52389487,2671.2,2671.1,0.04035806]
[1643823794384,2.82389487,2671.2,2671.1,0.04035806]
[1643823794788,2.52389487,2671.2,2671.1,0.04035806]
[1643823796185,2.52389487,2671.2,2670.9,1.62074554]
[1643823796186,5.65,2671.1,2670.9,1.62074554]
[1643823796385,6.62383,2671.0,2670.9,1.62074554]
[1643823796585,6.16083,2671.0,2670.9,1.62074554]
[1643823796884,6.16083,2671.0,2670.5,3.24149108]
[1643823796885,3.28667,2670.9,2670.5,3.24149108]
[1643823797289,2.12439487,2670.8,2670.5,3.24149108]
[1643823797536,2.42439487,2670.8,2670.5,3.24149108]
[1643823798537,2.61159487,2670.8,2670.5,3.24149108]
[1643823798737,4.70444174,2670.8,2670.5,3.24149108]
[1643823799237,4.70444174,2670.8,2670.6,0.32159532]
[1643823799238,5.89127174,2670.8,2670.6,0.32159532]
[1643823799437,7.42851795,2670.7,2670.6,0.32159532]
[1643823799637,9.83920795,2670.7,2670.6,0.32159532]
[1643823800237,10.02603795,2670.7,2670.6,0.32159532]
[1643823800439,6.32603795,2670.7,2670.6,0.32159532]
[1643823800840,6.99533217,2670.7,2670.6,0.32159532]
[1643823801340,6.99533217,2670.7,2670.4,0.30860013]
[1643823801341,5.95,2670.5,2670.4,0.30860013]
[1643823801540,5.65,2670.4,2670.1,3.26333283]
[1643823801727,3.08801685,2670.1,2669.9,2.40759868]
[1643823801928,4.71162487,2670.3,2669.9,2.40759868]
[1643823801929,2.52440487,2670.0,2669.9,2.40759868]
[1643823802129,3.06140487,2670.0,2669.9,2.30759868]
[1643823802537,0.93703,2670.3,2670.0,5.65]
[1643823802733,2.0606,2670.7,2669.9,4.35116358]
[1643823802734,2.58125999,2670.7,2669.9,2.30759868]
[1643823802932,1.64452999,2670.6,2669.9,2.30759868]
[1643823803133,0.70785999,2670.7,2669.9,2.30759868]
[1643823803333,0.70785999,2670.8,2669.9,2.30759868]
[1643823803530,0.70785999,2670.6,2669.9,2.30759868]
[1643823803733,0.70785999,2670.4,2669.9,2.30759868]
[1643823803931,0.9368,2670.3,2669.9,2.30759868]
[1643823804529,0.9368,2670.3,2670.0,0.6951057]
[1643823805148,0.9368,2670.3,2670.1,0.00176342]
[1643823805444,0.00529276,2670.2,2670.1,0.00176342]
[1643823806245,0.94209272,2670.3,2670.1,0.00176342]
[1643823807046,2.0844961,2670.2,2670.1,0.00176342]
[1643823807246,0.9368,2670.3,2670.1,0.00176342]
[1643823807547,0.94207777,2670.3,2670.1,0.00176342]
[1643823808147,0.00527777,2670.3,2670.1,0.00176342]
[1643823808687,0.01055554,2670.3,2670.1,0.00176342]
[1643823808887,0.00527777,2670.3,2670.1,0.00176342]
[1643823809487,0.00527777,2670.3,2669.9,1.38923063]
[1643823809689,1.23682,2670.4,2669.9,1.38923063]
[1643823809891,0.00509965,2670.3,2670.0,0.00510035]
[1643823810890,1.23682,2670.4,2669.9,0.62079329]
[1643823811091,0.00328115,2670.3,2669.9,0.62079329]
[1643823811694,0.00328115,2670.3,2670.0,0.90858774]
[1643823812439,0.00328115,2670.2,2670.0,0.90858774]
[1643823812842,0.00328115,2670.2,2669.9,0.62079329]
[1643823813039,0.00328115,2670.2,2669.5,1.77576081]
[1643823813243,0.00328115,2670.2,2668.5,1.47833662]
[1643823813245,6.95,2669.8,2668.5,1.47833662]
[1643823813449,6.95,2669.8,2668.5,3.662e-05]
[1643823813450,1.0,2669.0,2668.5,3.662e-05]
[1643823813640,7.53348283,2669.5,2668.3,1.62074554]
[1643823813641,38.99004723,2668.9,2668.3,1.62074554]
[1643823813845,6.72079879,2668.4,2668.3,1.62074554]
[1643823814038,8.56299879,2668.4,2668.3,1.62074554]
[1643823814239,8.86299879,2668.4,2668.3,1.62074554]
[1643823814438,8.86299879,2668.4,2668.3,0.91559105]
[1643823814638,8.86299879,2668.4,2668.2,5.40554448]
[1643823814838,6.8952,2668.3,2668.2,5.40554448]
[1643823815138,8.8502,2668.3,2668.2,5.40554448]
[1643823815540,8.5502,2668.3,2668.2,5.40554448]
[1643823815743,1.655,2668.3,2668.2,5.40554448]
[1643823816043,1.655,2668.3,2668.2,5.35554448]
[1643823816318,1.118,2668.3,2668.2,5.35554448]
[1643823819806,1.118,2668.3,2668.2,3.87236925]
[1643823820543,1.118,2668.3,2668.2,3.82236925]
[1643823825190,1.118,2668.3,2668.2,3.82413184]
[1643823826490,0.1872,2669.1,2668.3,5.15]
[1643823826693,5.51342796,2669.6,2668.4,0.03300177]
[1643823826694,0.1872,2669.2,2668.4,0.03300177]
[1643823826893,2.54258611,2669.6,2668.5,0.99999999]
[1643823826894,0.1872,2669.5,2668.5,0.99999999]
[1643823827090,0.1872,2669.5,2668.5,1.00999999]
[1643823827290,0.1872,2669.5,2668.6,0.01176259]
[1643823827542,0.1872,2669.5,2668.6,0.00176259]
[1643823827743,0.1872,2669.6,2668.6,0.00176259]
[1643823827943,1.58851519,2669.5,2668.9,0.00544675]
[1643823828143,0.1872,2669.4,2668.9,0.00544675]
[1643823828641,0.1872,2669.6,2668.9,0.00544675]
[1643823828842,1.58855725,2669.5,2668.9,0.00544675]
[1643823829042,0.1872,2669.4,2668.4,0.01176259]
[1643823829242,0.1872,2669.4,2669.0,0.00544667]
[1643823829444,0.1872,2669.6,2668.7,0.00176259]
[1643823829646,0.1872,2669.6,2668.3,6.3422]
[1643823829847,0.1872,2669.6,2668.8,0.89312686]
[1643823830044,0.1872,2669.6,2668.4,0.02065506]
[1643823830045,0.28875793,2669.4,2668.4,0.02065506]
[1643823830246,0.1872,2669.6,2668.4,0.02281276]
[1643823830444,0.01200787,2669.2,2668.3,1.1922]
[1643823830644,0.28875793,2668.7,2668.3,1.1922]
[1643823830843,0.28875793,2668.7,2668.2,3.82236925]
[1643823831048,0.1872,2669.1,2668.2,3.82236925]
[1643823831291,1.58876533,2669.0,2668.4,0.89517368]
[1643823831493,0.1872,2668.9,2668.2,3.82236925]
[1643823831892,0.1872,2669.0,2668.2,3.77236925]
[1643823832492,0.28875793,2669.0,2668.2,3.77236925]
[1643823832693,0.1872,2668.9,2668.2,3.77236925]
[1643823833292,0.28875793,2669.0,2668.2,3.77236925]
[1643823833493,0.1872,2668.9,2668.2,3.72236925]
[1643823833697,0.1872,2669.0,2668.2,3.72236925]
[1643823833893,0.0054465,2668.7,2668.4,0.00544715]
[1643823834953,0.1872,2669.0,2668.2,2.24932367]
[1643823835143,0.0054465,2668.7,2668.4,0.00544715]
[1643823836043,0.47595793,2669.0,2668.2,2.24932367]
[1643823836543,0.0054465,2668.7,2668.4,0.00544715]
[1643823836745,0.28875793,2668.6,2668.4,0.00544715]
[1643823836944,0.0054465,2668.7,2668.4,0.00544715]
[1643823836945,0.29420443,2668.7,2668.4,0.00544715]
[1643823837344,1.588887,2668.6,2668.2,2.24932367]
[1643823837544,1.588887,2668.6,2668.4,0.00544719]
[1643823838547,0.1872,2668.8,2668.2,2.24932367]
[1643823838794,1.59430453,2668.7,2668.4,0.00544719]
[1643823838994,0.00544644,2668.7,2668.4,0.00544719]
[1643823839191,0.28875793,2668.5,2668.4,0.00544719]
[1643823839798,0.28875793,2668.5,2668.2,2.24932367]
[1643823839994,2.19781659,2669.1,2668.3,0.00544723]
[1643823839995,0.00544638,2668.7,2668.3,0.00544723]
[1643823840194,0.1872,2668.6,2668.3,0.01544723]
[1643823840993,0.1872,2668.6,2668.3,0.01]
[1643823841194,0.1872,2668.6,2668.3,0.01544723]
[1643823841593,0.29420431,2668.7,2668.3,0.01544723]
[1643823841796,0.00544638,2668.7,2668.3,0.01544723]
[1643823842195,0.1872,2668.7,2668.3,0.01]
[1643823842444,0.19246671,2668.7,2668.4,0.00526743]
[1643823843244,0.1872,2668.7,2668.3,0.01]
[1643823843443,0.1872,2669.2,2668.3,0.01]
[1643823843643,1.58877261,2669.1,2668.7,0.09473323]
[1643823843847,0.1872,2669.0,2668.7,0.09473323]
[1643823844053,0.1872,2669.2,2668.7,0.09473323]
[1643823844245,2.54258611,2669.3,2668.7,0.09473323]
[1643823844444,1.87730285,2669.2,2668.7,0.09473323]
[1643823844645,1.58854492,2669.1,2668.7,0.09473323]
[1643823845047,0.1872,2669.6,2668.7,0.09473323]
[1643823845246,1.58853121,2669.5,2668.7,0.09473323]
[1643823845845,1.58853121,2669.5,2668.9,0.85230202]
[1643823846052,1.58853121,2669.5,2669.0,0.00172692]
[1643823846505,1.58853121,2669.4,2669.0,0.00172692]
[1643823846709,1.58853121,2669.3,2669.0,0.00172692]
[1643823846904,1.58853121,2669.2,2669.0,0.00172692]
[1643823847204,1.58853121,2669.1,2668.7,0.10473323]
[1643823847404,1.58853121,2669.0,2668.7,0.10473323]
[1643823847605,0.28875793,2669.4,2668.8,0.00172692]
[1643823847805,1.58857795,2669.3,2668.8,0.6851642]
[1643823848010,1.58857795,2669.2,2668.8,0.6851642]
[1643823848205,1.58857795,2669.1,2668.8,0.6851642]
[1643823848405,1.58857795,2669.0,2668.7,0.09473323]
[1643823848606,0.00505374,2669.2,2668.7,0.09473323]
[1643823848806,1.58860181,2669.1,2668.7,0.09473323]
[1643823849607,1.59404813,2669.0,2668.5,0.0171743]
[1643823849806,1.58860181,2668.9,2668.5,0.0071743]
[1643823850237,1.58860181,2668.9,2668.4,0.87103778]
[1643823850437,1.58860181,2668.9,2668.5,0.00172702]
[1643823850941,0.28875793,2668.7,2668.3,0.01172702]
[1643823851148,1.58860181,2668.6,2668.3,0.01172702]
[1643823851341,0.28875793,2668.5,2668.3,0.01172702]
[1643823851540,1.58885288,2668.4,2668.3,0.01172702]
[1643823851744,0.28875793,2668.5,2668.3,0.00172702]
[1643823851942,0.28875793,2668.5,2668.3,0.01172702]
[1643823852139,0.28875793,2668.7,2668.3,0.01172702]
[1643823852339,1.58876787,2668.6,2668.3,0.01172702]
[1643823852539,0.28875793,2668.7,2668.3,0.01172702]
[1643823853342,0.29420437,2668.7,2668.4,0.00544719]
[1643823853542,3.73875793,2668.5,2668.4,0.00544719]
[1643823853801,5.51484985,2668.5,2668.4,0.00544719]
[1643823854001,5.81484985,2668.5,2668.4,0.00544719]
[1643823854201,2.36484985,2668.5,2668.4,0.00544719]
[1643823854406,2.36484985,2668.5,2668.3,0.01717425]
[1643823854605,1.77609192,2668.4,2668.3,0.01717425]
[1643823854802,1.77609192,2668.4,2668.3,0.00717425]
[1643823854803,3.01349782,2668.4,2668.3,0.00717425]
[1643823855404,2.71349782,2668.4,2668.3,0.00172702]
[1643823856506,2.69721415,2668.4,2668.3,0.00172702]
[1643823856909,2.64721415,2668.4,2668.3,0.00172702]
[1643823857540,2.07609192,2668.4,2668.3,0.00172702]
[1643823857939,12.07609192,2668.4,2668.3,0.00172702]
[1643823858741,12.78395191,2668.4,2668.3,0.00172702]
[1643823858941,12.48395191,2668.4,2668.3,0.00172702]
[1643823859145,11.58889192,2668.4,2668.3,0.00172702]
[1643823859645,11.58889192,2668.4,2668.3,0.69817098]
[1643823860244,11.58889192,2668.4,2668.3,0.00172702]
[1643823861488,11.58889192,2668.4,2668.3,3.30172702]
[1643823862292,11.58889192,2668.4,2668.3,0.00172702]
[1643823862891,11.87764985,2668.4,2668.3,0.00172702]
[1643823863089,13.00850104,2668.4,2668.3,0.00172702]
[1643823863291,12.36484985,2668.4,2668.2,2.26460756]
[1643823863499,2.48637501,2668.3,2668.2,2.26460756]
[1643823863690,2.78637501,2668.3,2668.2,2.25460756]
[1643823863892,2.78637501,2668.3,2668.2,2.24932367]
[1643823864092,2.89820894,2668.3,2668.2,2.24932367]
[1643823864292,2.18792585,2668.3,2668.2,2.24932367]
[1643823866239,2.18792585,2668.3,2668.2,2.25105]
[1643823866638,1.88792585,2668.3,2668.2,2.25105]
[1643823867039,1.70072585,2668.3,2668.2,2.25105]
[1643823867840,1.70072585,2668.3,2668.2,2.10105]
[1643823868891,4.24400496,2668.3,2668.2,2.10105]
[1643823869792,4.24400496,2668.3,2668.2,0.40584839]
[1643823870194,1.70072585,2668.3,2668.2,0.40584839]
[1643823871292,1.70072585,2668.3,2668.2,2.90584839]
[1643823871493,1.70072585,2668.3,2668.2,3.58060195]
[1643823871494,4.24359174,2668.3,2668.2,3.58060195]
[1643823874145,4.24359174,2668.3,2668.2,0.40584839]
[1643823875746,6.24359174,2668.3,2668.2,0.40584839]
[1643823875946,7.08059174,2668.3,2668.2,0.40584839]
[1643823876201,6.02424293,2668.3,2668.2,0.40584839]
[1643823876495,6.08059174,2668.3,2668.1,2.75170293]
[1643823876698,4.98668488,2668.2,2668.1,2.75342926]
[1643823876897,4.98668488,2668.2,2668.1,2.74342926]
[1643823877096,4.98668488,2668.2,2668.1,2.73852477]
[1643823877296,4.98668488,2668.2,2668.1,2.74342929]
[1643823877498,2.17668378,2668.2,2668.1,2.74342929]
[1643823878298,2.17668378,2668.2,2668.1,2.73852477]
[1643823878898,1.98948378,2668.2,2668.1,2.73852477]
[1643823879299,2.28948378,2668.2,2668.1,2.73852477]
[1643823879498,4.3843077,2668.2,2668.1,2.73852477]
[1643823879700,2.28948378,2668.2,2668.1,2.73852477]
[1643823879948,1.98948378,2668.2,2668.1,2.73852477]
[1643823880148,2.88512933,2668.2,2668.1,2.73852477]
[1643823881251,2.69792933,2668.2,2668.1,2.73852477]
[1643823881951,1.98948378,2668.2,2668.1,2.73852477]
[1643823882152,1.98948378,2668.2,2668.1,2.73679844]
[1643823883252,2.69792933,2668.2,2668.1,2.73679844]
[1643823884290,1.98948378,2668.2,2668.1,2.73679844]
[1643823885395,2.69792933,2668.2,2668.1,2.73679844]
[1643823885591,1.98948378,2668.2,2668.1,2.73679844]
[1643823886796,2.28948378,2668.2,2668.1,2.73679844]
[1643823886995,3.99792933,2668.2,2668.1,2.73679844]
[1643823888246,6.95086378,2668.2,2668.1,2.73679844]
[1643823888446,6.60168905,2668.2,2668.1,2.73679844]
[1643823888644,4.18348786,2668.2,2668.1,2.73679844]
[1643823888845,2.40903926,2668.2,2668.1,2.73679844]
[1643823889045,1.98948378,2668.2,2668.1,2.73679844]
[1643823889644,2.69792253,2668.2,2668.1,1.04137949]
[1643823890845,8.95862051,2668.1,2668.0,1.63535274]
[1643823891046,11.36778511,2668.1,2668.0,1.62535274]
[1643823891295,10.65934636,2668.1,2668.0,1.62535274]
[1643823891493,10.65934636,2668.1,2668.0,1.62074554]
[1643823891695,13.20221225,2668.1,2668.0,1.62074554]
[1643823892697,13.20221225,2668.1,2668.0,3.52074554]
[1643823892896,13.20221225,2668.1,2668.0,1.52074554]
[1643823893995,13.20221225,2668.1,2668.0,2.2210291]
[1643823894196,13.20221225,2668.1,2668.0,1.52074554]
[1643823895246,13.910651,2668.1,2668.0,1.52074554]
[1643823895442,13.20221225,2668.1,2668.0,1.52074554]
[1643823895846,13.91186135,2668.1,2668.0,1.52074554]
[1643823897850,13.86193375,2668.1,2668.0,1.52074554]
[1643823898697,13.15228465,2668.1,2668.0,1.52074554]
[1643823899599,13.15228465,2668.1,2668.0,2.1899901]
[1643823900902,14.15069168,2668.1,2668.0,1.52074554]
[1643823901097,13.44104258,2668.1,2668.0,1.52074554]
[1643823901297,14.15069168,2668.1,2668.0,1.52074554]
[1643823901696,13.15228465,2668.1,2668.0,1.52074554]
[1643823901896,13.15228465,2668.1,2668.0,1.47074554]
[1643823902095,13.44104258,2668.1,2668.0,1.47074554]
[1643823902548,13.15228465,2668.1,2668.0,1.47074554]
[1643823904950,13.44104258,2668.1,2668.0,1.47074554]
[1643823905349,13.15228465,2668.1,2668.0,1.47074554]
[1643823906795,10.60941876,2668.1,2668.0,1.47074554]
[1643823907396,10.60941876,2668.1,2668.0,1.42074554]
[1643823909199,0.1874,2668.4,2668.1,5.45]
[1643823909200,0.8970491,2668.4,2668.1,5.45]
[1643823909400,0.8968491,2668.6,2668.2,2.01]
[1643823909599,0.8968491,2668.6,2668.3,0.01]
[1643823909798,3.28978283,2669.1,2668.1,5.65]
[1643823910060,9.03784659,2669.6,2668.0,1.42074554]
[1643823910061,0.94845049,2669.3,2668.9,4.2]
[1643823910256,6.84915787,2669.9,2669.0,3.3]
[1643823910257,1.88608492,2669.9,2669.0,3.3]
[1643823910457,0.1873,2669.8,2669.1,5.4]
[1643823910662,0.1873,2669.8,2669.1,8.4793]
[1643823910855,0.1872,2670.1,2669.1,8.48417463]
[1643823911058,0.1872,2670.1,2669.7,0.83116048]
[1643823911261,0.1872,2670.2,2669.8,0.14655902]
[1643823911461,2.35760615,2671.0,2669.8,0.14655902]
[1643823911462,0.1872,2670.4,2669.8,0.33375902]
[1643823911657,1.88608492,2670.8,2669.8,0.63375902]
[1643823911658,0.1872,2670.7,2669.8,0.63375902]
[1643823911857,0.1872,2670.7,2669.8,0.6378826]
[1643823912055,0.1872,2670.8,2670.5,0.7438537]
[1643823912357,0.1872,2670.9,2670.5,0.7438537]
[1643823912559,0.1872,2671.0,2670.6,2.0]
[1643823912757,2.38083408,2671.7,2670.6,0.1872]
[1643823912758,0.1872,2671.2,2670.6,0.1872]
[1643823912959,0.1872,2671.6,2670.7,0.537]
[1643823913157,0.1872,2671.6,2670.8,0.187]
[1643823913356,1.88608492,2671.6,2670.8,0.187]
[1643823913556,1.88608492,2671.6,2670.6,0.187]
[1643823913795,2.07308492,2671.5,2670.6,0.187]
[1643823914001,1.88608492,2671.4,2670.6,0.187]
[1643823914196,0.187,2671.3,2670.6,0.187]
[1643823914397,0.30338609,2671.0,2670.6,0.187]
[1643823914698,0.1872,2670.9,2669.9,1.1911]
[1643823914896,0.1872,2670.9,2670.0,0.01]
[1643823915097,0.1872,2670.9,2669.6,3.1752]
[1643823915098,0.1872,2670.9,2669.7,0.01]
[1643823915296,1.12378,2670.9,2669.7,0.86067755]
[1643823915699,0.1872,2670.9,2669.7,0.86067755]
[1643823915900,0.0054435,2670.4,2669.7,0.86067755]
[1643823916502,0.1872,2670.3,2669.7,0.86067755]
[1643823916898,0.1872,2670.3,2669.7,0.01]
[1643823917200,0.0054437,2670.2,2669.7,0.01]
[1643823917473,0.1872,2670.1,2669.5,0.07917522]
[1643823918070,0.1872,2670.4,2669.5,0.07917522]
[1643823918270,0.00526015,2669.9,2669.5,0.07917522]
[1643823919270,0.00500342,2670.5,2669.5,0.07917522]
[1643823919271,0.1872,2670.2,2669.5,0.07917522]
[1643823919472,0.00516012,2669.8,2669.5,0.07917522]
[1643823920371,0.60677218,2670.0,2669.7,0.87838775]
[1643823920574,0.60677218,2670.0,2669.6,0.1872]
[1643823920773,0.00516016,2669.8,2669.6,0.1872]
[1643823920971,0.00516016,2669.8,2669.5,0.07917522]
[1643823921700,0.60677218,2670.0,2669.5,0.07917522]
[1643823921896,0.00524717,2669.8,2669.6,0.1872]
[1643823922897,0.60677218,2670.0,2669.6,0.1872]
[1643823923096,0.00534723,2669.8,2669.6,0.1872]
[1643823923898,0.60677218,2670.0,2669.6,0.1872]
[1643823924303,0.00534723,2669.8,2669.6,0.1872]
[1643823924966,0.30338609,2669.7,2669.6,0.1872]
[1643823925155,0.60677218,2669.7,2669.6,0.1872]
[1643823926758,0.60677218,2669.7,2669.6,3.7872]
[1643823928158,0.60677218,2669.7,2669.6,4.0872]
[1643823928560,0.60677218,2669.7,2669.6,3.7872]
[1643823929803,0.60677218,2669.7,2669.6,0.1872]
[1643823930598,0.60677218,2669.7,2669.6,3.1372]
[1643823930799,0.60677218,2669.7,2669.6,3.4372]
[1643823932947,0.00526029,2669.8,2669.7,5.6]
[1643823933148,0.00526029,2669.8,2669.7,9.32592793]
[1643823933350,6.029e-05,2669.8,2669.7,10.32592793]
[1643823933550,0.72710444,2671.0,2669.7,10.32592793]
[1643823933551,0.02103133,2671.0,2669.9,5.65]
[1643823933751,0.1872,2671.5,2670.9,5.65]
[1643823933956,0.1872,2671.5,2671.4,0.72992208]
[1643823934152,0.18969169,2671.6,2671.4,1.85552208]
[1643823934347,0.187,2671.7,2671.4,1.86552208]
[1643823934547,0.187,2671.7,2671.5,0.01]
[1643823934751,0.187,2671.8,2671.5,0.01]
[1643823935347,0.177,2671.8,2671.4,1.1256]
[1643823935550,0.00269169,2671.7,2671.4,1.1256]
[1643823935748,0.00269169,2671.7,2671.4,1.9626]
[1643823935949,0.00269169,2671.7,2671.5,0.00362382]
[1643823936201,0.187,2672.2,2671.6,0.78330938]
[1643823936202,0.00269169,2671.8,2671.6,0.78330938]
[1643823936600,0.9403304,2672.6,2671.7,7.81783625]
[1643823936601,0.187,2672.4,2671.7,7.81783625]
[1643823936799,3.4805,2673.2,2671.7,7.81783625]
[1643823936800,0.89307311,2672.8,2671.8,0.537]
[1643823937001,0.89307311,2672.8,2672.6,0.17624719]
[1643823937002,0.187,2672.8,2672.6,0.17624719]
[1643823937199,0.70607311,2672.9,2672.0,0.187]
[1643823937403,0.70607311,2673.0,2672.5,0.537]
[1643823937603,0.187,2672.9,2672.8,0.83353953]
[1643823937801,0.70607311,2673.2,2672.8,1.67053953]
[1643823938001,0.89307311,2673.3,2672.8,1.67053953]
[1643823938204,0.70607311,2673.3,2672.8,1.67053953]
[1643823938403,0.70607311,2673.4,2673.2,0.18527242]
[1643823938601,0.89307311,2673.6,2673.3,0.92343257]
[1643823938802,0.70607311,2673.5,2673.3,0.92343257]
[1643823939100,0.70607311,2673.5,2673.1,0.537]
[1643823939300,0.70607311,2673.5,2673.1,0.837]
[1643823939956,1.41043352,2674.1,2673.1,0.837]
[1643823939957,0.02118342,2673.8,2673.3,5.2]
[1643823940153,0.02118342,2673.8,2673.4,0.537]
[1643823940349,0.02118342,2673.8,2673.5,0.1869]
[1643823940548,1.1273304,2674.4,2673.6,0.537]
[1643823940549,0.13708342,2674.4,2673.6,0.537]
[1643823940848,0.13708342,2674.4,2674.3,0.19733829]
[1643823941055,0.1869,2674.6,2674.3,0.19733829]
[1643823941250,0.9403304,2674.8,2674.4,0.537]
[1643823941555,2.35760615,2675.8,2674.4,0.537]
[1643823941556,0.9403304,2675.6,2674.7,4.5]
[1643823941749,1.42324368,2675.9,2674.8,0.547]
[1643823941750,1.1272304,2675.7,2674.8,0.547]
[1643823941952,0.1869,2675.7,2675.6,0.19071102]
[1643823942149,0.1867,2675.8,2675.5,0.1959237]
[1643823942555,0.01308036,2675.7,2675.6,0.73022804]
[1643823943151,0.01308036,2675.7,2675.5,0.1959237]
[1643823943350,0.1867,2676.1,2675.6,0.537]
[1643823943551,0.00547173,2675.8,2675.6,0.537]
[1643823944206,0.00547173,2675.8,2675.2,0.86501245]
[1643823944504,0.1867,2676.1,2675.2,1.40201245]
[1643823944505,0.14217173,2676.1,2675.2,1.40201245]
[1643823944707,0.00547168,2675.8,2675.3,0.01]
[1643823944905,0.1867,2675.7,2675.0,0.00389878]
[1643823945306,0.1867,2675.7,2675.1,0.19690038]
[1643823945706,0.1867,2675.7,2675.3,0.7064565]
[1643823945907,0.1867,2676.1,2675.3,0.7064565]
[1643823946107,0.1867,2676.2,2675.3,0.7064565]
[1643823946406,0.9403304,2676.4,2675.3,0.7064565]
[1643823946407,0.1867,2676.3,2675.3,0.7064565]
[1643823946806,0.1867,2676.3,2675.1,0.20690038]
[1643823947108,0.1867,2676.3,2674.8,0.537]
[1643823947109,0.0054716,2675.9,2674.9,0.1867]
[1643823947307,0.1867,2675.8,2674.8,0.01]
[1643823947559,0.37841429,2675.8,2674.7,0.00547419]
[1643823947761,2.62919633,2675.7,2674.7,0.00547419]
[1643823947958,2.62919633,2675.7,2675.0,0.18042575]
[1643823947959,0.19347285,2675.6,2675.0,0.18042575]
[1643823948260,0.1869,2675.6,2675.0,0.18042575]
[1643823948457,0.1867,2675.8,2675.0,0.18042575]
[1643823948656,0.1867,2675.8,2674.8,0.70814212]
[1643823949057,2.54530942,2675.8,2674.7,0.00547353]
[1643823949458,2.25675675,2675.7,2674.4,0.1867]
[1643823949657,0.1869,2675.6,2674.9,0.17121155]
[1643823949859,3.9,2675.5,2674.3,0.2]
[1643823950059,0.1919,2675.4,2674.8,0.7013997]